{"text_format":"1","workbook":"xlsx","n_sheets":5,"sheets":["Antragsformular","Kostenplan","Finanzierungsplan","Anlage zum Antrag","Datenschutzerklärung"],"not_rendered":{"charts":0,"images":9,"macros":1,"external_links":0,"defined_names":5,"comments":1,"pivot_tables":0},"unopened":[],"bounds":{"document_bytes":16777216,"sheet_cells":100000,"rows_first":2000,"rows_last":500,"rows_between":2000,"halvings":0,"cell_chars":16384,"cell_head_chars":4096},"cells_cut":0,"cells_raw":0,"read":"whole","date_system":"1900"}

{"sheet":"Antragsformular","index":0,"n_rows":542,"n_cols":22,"rows_kept":542,"cut":false,"hidden":false,"merged":[[391,2,391,11],[398,7,398,9],[433,10,434,10],[449,2,449,9],[450,2,450,3],[371,2,371,11],[372,2,377,11],[378,2,386,11],[390,2,390,12],[415,2,415,7],[418,2,419,11],[401,2,405,11],[400,2,400,11],[414,2,414,7],[413,2,413,7],[394,8,394,9],[388,2,388,11],[406,2,410,11],[393,8,393,9],[393,2,396,3],[413,8,413,11],[414,8,414,11],[393,10,394,11],[193,2,201,11],[207,2,215,11],[216,2,224,11],[369,10,369,11],[366,2,367,3],[361,2,361,7],[338,2,338,11],[365,4,365,5],[365,6,365,7],[365,8,365,9],[364,4,364,5],[364,6,364,7],[364,8,364,9],[364,10,365,11],[339,2,347,11],[362,2,362,10],[369,8,369,9],[348,2,356,11],[91,2,92,11],[96,6,96,7],[310,2,310,11],[324,2,324,9],[326,2,334,11],[337,2,337,11],[311,2,311,9],[298,2,306,11],[105,2,105,11],[206,2,206,11],[156,2,156,11],[107,2,115,11],[94,7,94,11],[103,2,103,11],[155,2,155,11],[205,2,205,11],[257,2,265,11],[266,2,274,11],[143,2,151,11],[184,2,192,11],[255,2,255,11],[225,2,233,11],[234,2,242,11],[313,2,321,11],[82,4,82,11],[83,4,83,11],[243,2,251,11],[100,1,100,12],[71,2,71,3],[71,4,71,11],[73,4,73,11],[72,4,72,11],[297,2,297,11],[284,2,292,11],[275,2,283,11],[90,2,90,11],[157,2,165,11],[166,2,174,11],[134,2,142,11],[175,2,183,11],[106,2,106,11],[96,9,96,10],[97,9,97,10],[97,6,97,7],[86,6,87,11],[116,2,124,11],[125,2,133,11],[256,2,256,11],[2,10,2,11],[3,10,3,11],[6,2,6,11],[5,2,5,9],[5,10,5,11],[1,2,3,4],[10,8,10,11],[12,4,12,11],[10,2,10,6],[12,2,12,3],[8,2,8,11],[23,4,23,11],[26,4,26,11],[27,2,27,3],[27,4,27,11],[61,2,61,12],[51,2,59,11],[14,6,14,11],[14,2,14,5],[16,6,16,11],[16,2,16,5],[18,6,18,11],[18,2,18,5],[25,4,25,11],[35,6,35,11],[36,6,36,11],[20,6,20,11],[20,2,20,5],[24,4,24,11],[65,4,65,11],[81,4,81,11],[30,2,30,11],[31,2,31,11],[34,2,34,3],[34,4,34,5],[70,2,70,11],[34,6,34,11],[35,4,35,5],[60,4,60,8],[62,2,62,11],[41,2,41,11],[42,2,42,11],[69,4,69,11],[46,4,46,11],[47,4,47,11],[45,4,45,11],[67,4,67,11],[68,4,68,11],[66,4,66,11],[511,2,512,4],[486,3,486,11],[478,3,478,11],[464,3,464,11],[474,3,474,11],[510,6,512,11],[484,3,484,11],[480,3,480,11],[482,3,482,11],[504,3,504,11],[487,3,487,11],[488,3,488,11],[489,3,489,11],[490,3,490,11],[491,3,491,11],[445,2,445,5],[445,8,445,11],[447,2,447,5],[447,8,447,11],[442,2,442,6],[443,2,443,5],[494,3,494,11],[492,3,492,11],[451,2,459,11],[427,7,428,11],[443,8,443,11],[439,2,439,5],[442,8,442,12],[412,2,412,7],[398,10,398,11],[393,4,393,5],[433,6,434,6],[436,2,436,5],[437,2,437,5],[435,2,435,5],[394,4,394,5],[393,6,393,7],[394,6,394,7],[433,9,434,9]]}
[]
[]
[]
[null,null,null,null,null,null,null,null,null,null,"EUROPÄISCHE UNION"]
[]
[null,null,"ANTRAGSFORMULAR",null,null,null,null,null,null,null,"Stand: Mai 2019"]
[null,null,"Antrag auf Fördermittel aus dem Europäischen Sozialfonds (Förderperiode 2014 - 2020)\nZiel Investitionen in Wachstum und Beschäftigung"]
[]
[null,null,"Das Antragsformular steht auch auf Basis von VZÄ zur Verfügung."]
[]
[null,1,"An die\nLandeskreditbank Baden-Württemberg\nBereich Finanzhilfen\nSchlossplatz 10\n76113 Karlsruhe",null,null,null,null,"UND","per E-Mail an:\nesf-wirtschaft@wm.bwl.de\n\n"]
[]
[null,null,"Aufruftitel: ",null,"Kontaktstellen für Zugewanderte aus der EU\nin arbeitsausbeuterischer Beschäftigung"]
[]
[null,null,"Antragsfrist: ",null,null,null,"2019-07-31"]
[]
[null,null,"Aktenzeichen des Ministeriums für Wirtschaft, Arbeit und Wohnungsbau: ",null,null,null,"4-4305.84/17"]
[]
[null,null,"Prioritätsachse: ",null,null,null,"A - Förderung nachhaltiger und hochwertiger Beschäftigung und Unterstützung der Mobilität der Arbeitskräfte"]
[]
[null,null,"Spezifisches Ziel: ",null,null,null,"A 5.1 - Stärkung der Wettbewerbsfähigkeit von Erwerbstätigen und mittelständischer Wirtschaft"]
[]
[null,2,"Angaben zum Antragsteller (rechtlich verantwortlich für die Durchführung des Projekts)"]
[null,null,"Name"]
[null,null,"Straße, Hausnummer"]
[null,null,"PLZ, Ort"]
[null,null,"E-Mail"]
[null,null,"Webseite (soweit vorhanden)"]
[]
[null,3,"Rechtsform des Antragstellers"]
[null,null,"Antragsteller des privaten Rechts"]
[null,null,"Hinweis: Private Antragsteller sind u.a. Unternehmen; Vereine; kirchliche Einrichtungen; Tochtergesellschaften von Kommunen, die als Unternehmen geführt werden"]
[]
[null,null,"Falls Unternehmen, bitte ausfüllen:"]
[null,null,null,null,"Rechtsform:"]
[null,null,null,null,"Branche:",null,"Bitte wählen Sie mithilfe des Dropdown die zutreffende Branche aus! "]
[null,null,null,null,null,null,"Ist das Unternehmen im Handelsregister eingetragen?"]
[null,null,null,null,null,null,null,"ja (bitte den HR-Auszug beifügen, falls dieser nicht der L-Bank vorliegt)"]
[]
[null,null,null,null,null,null,null,"nein"]
[]
[null,null,"Antragsteller des öffentlichen Rechts"]
[null,null,"Hinweis: Öffentliche Antragsteller sind u.a. Kommunen; kommunale Zweckverbände - soweit nicht Unternehmen (Bitte Verbandsatzung beifügen, falls diese nicht bei der L-Bank vorliegt); sonstige Körperschaften des öffentlichen Rechts, wie z.B. Kammern oder Innungen"]
[]
[null,4,"Angaben zum Träger, falls von Antragsteller abweichend (führt die Maßnahme tatsächlich durch)"]
[null,null,"Name"]
[null,null,"Straße, Hausnummer"]
[null,null,"PLZ, Ort"]
[]
[]
[null,5,"Standorte der Durchführung der Maßnahme (unter Angabe der Straße, Hausnummer, PLZ, Ort)"]
[]
[]
[]
[]
[]
[]
[]
[]
[]
[]
[null,6,"Stadt- bzw. Landkreis/e, in dem / in denen das Vorhaben durchgeführt wird (bitte alle Stadt- bzw. Landkreise nennen)"]
[]
[]
[null,7,"Angaben zur projektverantwortlichen Person / Projektleitung"]
[null,null,"Name"]
[null,null,"Vorname"]
[null,null,"Telefon"]
[null,null,"Telefax"]
[null,null,"E-Mail"]
[null,null,"falls abweichend vom Antragsteller:"]
[null,null,"   Webseite (soweit \n   vorhanden)"]
[null,null,"   Straße, Hausnummer"]
[null,null,"   PLZ, Ort"]
[]
[null,8,"Ort der Ablage der Belege"]
[null,null,"beim Antragsteller"]
[null,null,"beim Träger"]
[null,null,"am Ort der Maßnahme"]
[null,null,"an anderer Stelle "]
[null,null,"   bitte Name und Anschrift angeben:"]
[null,null,"   Name"]
[null,null,"   Straße, Hausnummer"]
[null,null,"   PLZ, Ort"]
[]
[null,9,"Zertifizierung des Trägers"]
[null,null,"nein","ja","ggf. welche:"]
[]
[]
[null,10,"Name und kurze Beschreibung des geplanten Vorhabens (maximal 250 Zeichen)"]
[null,null,"Hinweis: Die Beschreibung wird im Falle einer Bewilligung in der \"Liste der Vorhaben\" nach Art. 115 Abs. 2 der Verordnung (EU) Nr. 1303/2013 veröffentlicht."]
[]
[null,null,null,null,null,null,null,null,null,null,null,null,null,null,null,null,null,null,null,null,null,"plus 48 Mo"]
[null,null,null,null,null,null,null,null,null,null,null,null,null,null,null,null,null,null,null,null,null,{"$f":"DATE(YEAR(G97)+4,MONTH(G97),DAY(G97))","v":"2024-01-01"}]
[null,11,"Kurzname des Projektes (max. 20 Zeichen)",null,null,null,null,"Arbeitsausbeutung EU"]
[null,null,null,null,null,null,null,null,null,null,null,null,null,null,null,null,null,null,null,null,null,"Anfangsdatum"]
[null,12,"Durchführungszeitraum",null,null,"von","2020-01-01",null,"bis","2021-09-30",null,null,null,null,null,null,null,null,null,null,null,{"$f":"IF(G97>0,G97,\"01.01.2009\")","v":"2020-01-01"}]
[null,null,null,null,null,null,"(TT.MM.JJJJ)",null,null,"(TT.MM.JJJJ)"]
[]
[]
[null,"Falls die folgenden Antwortfelder für Ihre Ausführungen nicht ausreichen, können Sie diese auf einer gesonderten Anlage darstellen. "]
[]
[null,13,"Projektbeschreibung"]
[null,null,"Die Querschnittsziele \"Gleichstellung von Frauen und Männern\" und \"Chancengleichheit und Nichtdiskriminierung\" sind integrierter Bestandteil des Projektvorhabens und deshalb in der nachfolgenden Projektbeschreibung ausführlich darzulegen."]
[null,null,"13.1 Ausgangslage und Handlungsbedarf"]
[null,null,"Wie ist die Ausgangslage des Projekts und welcher Handlungsbedarf resultiert daraus? "]
[null,null,"Im Hinblick auf die oben angeführten Querschnittsziele beantworten Sie bitte folgende Fragen:\nWelche geschlechterdifferenzierten Rahmenbedingungen und Bedarfe der Zielgruppen bestehen im Handlungsfeld des Projekts?\nAnalysieren Sie auch die spezifischen Rahmenbedingungen und ggf. daraus resultierende Handlungsbedarfe für individuell oder sozial benachteiligte Personengruppen, v.a. für Menschen mit Migrationshintergrund oder für ältere Menschen im Handlungsfeld des Projekts."]
[null,null,null,null,null,null,null,null,null,null,null,null,null,null,null,{"$f":"IF(P111=1,\"2015\",IF(P112=1,\"2016\",IF(P113=1,\"2017\",IF(P114=1,\"2018\",IF(P115=1,\"2019\",IF(P116=1,\"2020\",\" \"))))))","v":"2020"},{"$f":"IF(Q111=1,\"2015\",IF(Q112=1,\"2016\",IF(Q113=1,\"2017\",IF(Q114=1,\"2018\",IF(Q115=1,\"2019\",IF(Q116=1,\"2020\",IF(Q117=1,\"2021\",\" \")))))))","v":"2021"},{"$f":"IF(R111=1,\"2015\",IF(R112=1,\"2016\",IF(R113=1,\"2017\",IF(R114=1,\"2018\",IF(R115=1,\"2019\",IF(R116=1,\"2020\",IF(R117=1,\"2021\",\" \")))))))","v":" "},{"$f":"IF(S111=1,\"2015\",IF(S112=1,\"2016\",IF(S113=1,\"2017\",IF(S114=1,\"2018\",IF(S115=1,\"2019\",IF(S116=1,\"2020\",IF(S117=1,\"2021\",\" \")))))))","v":" "}]
[]
[null,null,null,null,null,null,null,null,null,null,null,null,null,null,null,"1KJ","2KJ","3KJ","4KJ"]
[null,null,null,null,null,null,null,null,null,null,null,null,null,null,2015,{"$f":"COUNTIF(G97,\">=01.01.2015\")-(P112+P113+P114+P115+P116+P117+P118)","v":0},null,null,null,{"$f":"COUNTIF(J97,\">=01.01.2015\")","v":1}]
[null,null,null,null,null,null,null,null,null,null,null,null,null,null,2016,{"$f":"COUNTIF(G97,\">=01.01.2016\")-(P113+P114+P115+P116+P117+P118)","v":0},{"$f":"SUMPRODUCT((P111=1)*(T112=1))","v":0},null,null,{"$f":"COUNTIF(J97,\">=01.01.2016\")","v":1}]
[null,null,null,null,null,null,null,null,null,null,null,null,null,null,2017,{"$f":"COUNTIF(G97,\">=01.01.2017\")-(P114+P115+P116+P117+P118)","v":0},{"$f":"SUMPRODUCT((P112=1)*(T113=1))","v":0},{"$f":"SUMPRODUCT((P111=1)*(T113=1))","v":0},null,{"$f":"COUNTIF(J97,\">=01.01.2017\")","v":1}]
[null,null,null,null,null,null,null,null,null,null,null,null,null,null,2018,{"$f":"COUNTIF(G97,\">=01.01.2018\")-(P115+P116+P117+P118)","v":0},{"$f":"SUMPRODUCT((P113=1)*(T114=1))","v":0},0,{"$f":"SUMPRODUCT((P111=1)*(T114=1))","v":0},{"$f":"COUNTIF(J97,\">=01.01.2018\")","v":1}]
[null,null,null,null,null,null,null,null,null,null,null,null,null,null,2019,{"$f":"COUNTIF(G97,\">=01.01.2019\")-(P116+P117+P118)","v":0},0,{"$f":"SUMPRODUCT((P113=1)*(T115=1))","v":0},{"$f":"SUMPRODUCT((P112=1)*(T115=1))","v":0},{"$f":"COUNTIF(J97,\">=01.01.2019\")","v":1}]
[null,null,null,null,null,null,null,null,null,null,null,null,null,null,2020,{"$f":"COUNTIF(G97,\">=01.01.2020\")-(P117+P118)","v":1},0,{"$f":"SUMPRODUCT((P114=1)*(T116=1))","v":0},{"$f":"SUMPRODUCT((P113=1)*(T116=1))","v":0},{"$f":"COUNTIF(J97,\">=01.01.2020\")","v":1}]
[null,null,null,null,null,null,null,null,null,null,null,null,null,null,2021,{"$f":"COUNTIF(G97,\">=01.01.2021\")-(P118)","v":0},1,0,{"$f":"SUMPRODUCT((P114=1)*(T117=1))","v":0},{"$f":"COUNTIF(J97,\">=01.01.2021\")","v":1}]
[null,null,null,null,null,null,null,null,null,null,null,null,null,null,2022,{"$f":"COUNTIF(G97,\">=01.01.2022\")","v":0},0,0,{"$f":"SUMPRODUCT((P115=1)*(T118=1))","v":0},{"$f":"COUNTIF(J97,\">=01.01.2022\")","v":0}]
[]
[]
[]
[]
[]
[]
[]
[]
[]
[]
[]
[]
[]
[]
[]
[]
[]
[]
[]
[]
[]
[]
[]
[]
[]
[]
[]
[]
[]
[]
[]
[]
[]
[]
[]
[]
[null,null,"13.2 Zielsetzung und Zielgruppen des Vorhabens"]
[null,null,"Welche Projektziele entwickeln Sie für Ihr Vorhaben innerhalb des Projektaufrufs und an welche Zielgruppen wendet sich das Projekt?"]
[null,null,"Im Hinblick auf die oben aufgeführten Querschnittsziele beantworten Sie bitte folgende Fragen:\nWelche konkreten Zielsetzungen zur Förderung der Gleichstellung von Frauen und Männern verfolgen Sie bei den angesprochenen Zielgruppen? \nWelche konkreten Ziele zur Förderung der Chancengleichheit und Nichtdiskriminierung verfolgen Sie? Bitte zeigen Sie auf, inwiefern individuell oder sozial benachteiligte Personengruppen einbezogen werden.\n "]
[]
[]
[]
[]
[]
[]
[]
[]
[]
[]
[]
[]
[]
[]
[]
[]
[]
[]
[]
[]
[]
[]
[]
[]
[]
[]
[]
[]
[]
[]
[]
[]
[]
[]
[]
[]
[]
[]
[]
[]
[]
[]
[]
[]
[]
[]
[]
[null,null,"13.3 Projektinhalte und Projektumsetzung"]
[null,null,"Welche Projektinhalte planen Sie und wie wollen Sie diese umsetzen?"]
[null,null,"Im Hinblick auf die oben aufgeführten Querschnittsziele beantworten Sie bitte folgende Fragen: \nBitte beschreiben Sie die zielgruppenadäquaten Inhalte und deren konkrete Umsetzung auch in Bezug auf die Förderung der Gleichstellung von Frauen und Männern und die Förderung der Chancengleichheit und Nichtdiskriminierung von individuell oder sozial benachteiligten Personengruppen im Vorhaben (Zugang zu spezifischen Zielgruppen und Rahmenbedingungen wie bspw. Zeitstruktur, Standort, Räumlichkeiten und Barrierefreiheit)."]
[]
[]
[]
[]
[]
[]
[]
[]
[]
[]
[]
[]
[]
[]
[]
[]
[]
[]
[]
[]
[]
[]
[]
[]
[]
[]
[]
[]
[]
[]
[]
[]
[]
[]
[]
[]
[]
[]
[]
[]
[]
[]
[]
[]
[]
[]
[]
[null,null,"13.4 Sicherung der Projektergebnisse"]
[null,null,"Wie wollen Sie die Projektergebnisse nach Ablauf des Durchführungszeitraums verstetigen?"]
[null,null,"Bitte stellen Sie dies auch geschlechterdifferenziert und bezogenen auf die individuell oder sozial benachteiligten Personengruppen im Vorhaben dar."]
[]
[]
[]
[]
[]
[]
[]
[]
[]
[]
[]
[]
[]
[]
[]
[]
[]
[]
[]
[]
[]
[]
[]
[]
[]
[]
[]
[]
[]
[]
[]
[]
[]
[]
[]
[]
[]
[null,null,"13.5 Weitere Querschnittsziele",null,null,null,null,null,null,null,null,null,null,null,null,null,null,null,null,null,null,{"$f":"IF(G292>0,V289,\"31.12.2015\")","v":"31.12.2015"}]
[null,null,"13.5.1 Transnationale Kooperationen"]
[null,null,"Ist transnationale Zusammenarbeit Bestandteil der Projektkonzeption?",null,null,null,null,null,null,null,"ja","nein"]
[null,null,"Wenn ja, stellen Sie bitte Partnerschaften/Partner sowie Ziele und Inhalt des Austauschs dar:"]
[]
[]
[]
[]
[]
[]
[]
[]
[]
[]
[]
[null,null,"13.5.2 Ökologische Nachhaltigkeit"]
[null,null,"Wir empfehlen Ihrer Organisation, den Deutschen Nachhaltigkeitskodex anzuwenden und sich an den Empfehlungen zum Green Public Procurement zu orientieren."]
[null,null,"Werden umweltbezogene oder ökologische Förderinhalte umgesetzt und trägt das Projekt\nzum Ziel der Nachhaltigkeit im Sinne des Schutzes der Umwelt und der Verbesserung ihrer Qualität bei (z.B. CO2-Reduzierung)?",null,null,null,null,null,null,null,"\nja","\nnein"]
[null,null,"Wenn ja, in welcher Form:"]
[]
[]
[]
[]
[]
[]
[]
[]
[]
[]
[null,null,"13.5.3 Soziale Innovation"]
[null,null,"Sind sozial innovative Ansätze Bestandteil der Projektkonzeption?",null,null,null,null,null,null,null,"\nja","\nnein"]
[null,null,"Wenn ja, stellen Sie die Ansätze bitte dar:"]
[]
[]
[]
[]
[]
[]
[]
[]
[]
[]
[null,null,"13.6 Informationen zum Antragsteller bzw. Projektträger"]
[null,null,"Was qualifiziert Sie zur Durchführung des Projekts? \nBitte stellen Sie vor allem dar: \n- Ihre finanzielle Leistungsfähigkeit\n- Ihre personelle Leistungsfähigkeit (z.B. Qualifizierung des Personals)\n- Ihre operationell-inhaltliche Leistungsfähigkeit\n- Ihre administrative Leistungsfähigkeit\n- Ihre projektrelevanten Erfahrungen in Bezug auf das Aufrufthema und in Bezug auf Förderungen aus dem ESF bzw. den Strukturfonds"]
[null,null,"Im Hinblick auf die oben aufgeführten Querschnittsziele beantworten Sie bitte folgende Fragen: \nWie stellen Sie sicher, dass Ihre Mitarbeiter/innen genderkompetent arbeiten und wie wird die Gleichstellung der Geschlechter in Ihrer Organisation verfolgt?\nWie wird Chancengleichheit und Nichtdiskriminierung (bspw. Barrierefreiheit) in Ihrer Organisation umgesetzt? Wie stellen Sie sicher, dass Ihre Mitarbeiter/innen Chancengleichheit und Nichtdiskriminierung im Projekt umsetzen? Wie stellen Sie sicher, dass die von Ihnen eingesetzten Fachkräfte über die notwendige interkulturelle Kompetenz verfügen?"]
[]
[]
[]
[]
[]
[]
[]
[]
[]
[]
[]
[]
[]
[]
[]
[]
[]
[]
[]
[]
[null,14,"Geplante Zahl der Teilnehmer-Eintritte mit Stammblattdaten"]
[]
[null,null,"14.1 Anzahl Teilnehmer/innen"]
[null,null,"Hinweis: Pro Bewilligung zählt jede/r Teilnehmende auch bei mehrjährigen Projekten nur einmal."]
[]
[null,null,null,null,2020,null,2021,null,null,null,"Summe"]
[null,null,null,null,"1. Kalenderjahr",null,"2. Kalenderjahr"]
[null,null,"Anzahl Teilnehmer/innen",null,"m","w","m","w",null,null,"m","w"]
[null,null,null,null,null,null,null,null,null,null,{"$f":"E368+G368","v":0},{"$f":"F368+H368","v":0}]
[]
[null,null,null,null,null,null,null,null,"Gesamt-Eintritte:",null,{"$f":"K368+L368","v":0}]
[]
[null,null,"Bitte stellen Sie die Kalkulation der Teilnehmer-Eintritte mit Stammblattdaten unter Angabe von Maßnahmen und Zeitplanung dar. "]
[]
[]
[]
[]
[]
[]
[]
[]
[]
[]
[]
[]
[]
[]
[]
[]
[null,15,"Geplante Reichweite des Projekts, gemessen mittels Indikatoren"]
[]
[null,null,"15.1 Outputindikator 1: Angabe des Zielwerts des Outputindikators (Soll-Wert), getrennt nach Geschlecht"]
[null,null,"Hinweis: Pro Bewilligung zählt jede/r teilnehmende Erwerbstätige auch bei mehrjährigen Projekten nur einmal. "]
[]
[null,null,"Erwerbstätige, auch Selbständige",null,2020,null,2021,null,null,null,"Summe"]
[null,null,null,null,"1. Kalenderjahr",null,"2. Kalenderjahr"]
[null,null,null,null,"m","w","m","w",null,null,"m","w"]
[null,null,null,null,null,null,null,null,null,null,{"$f":"E397+G397","v":0},{"$f":"F397+H397","v":0}]
[]
[null,null,null,null,null,null,null,"Summe Outputindikator 1:",null,null,{"$f":"K397+L397","v":0}]
[]
[null,null,"Bitte stellen Sie die Kalkulation der Outputindikatoren unter Angabe von Maßnahmen und Zeitplanung dar. "]
[]
[]
[]
[]
[]
[]
[]
[]
[]
[]
[]
[null,null,"15.2 Ergebnisindikator 1 (zu Ihrer Information):"]
[null,null,"Bezeichnung",null,null,null,null,null,"Zielwert (Soll-Wert)"]
[null,null,"Teilnehmer, die nach ihrer Teilnahme eine Qualifizierung erlangen.",null,null,null,null,null,"Der lt. operationellem Programm für den ESF anzustrebende Zielwert liegt bei 98%.\nDie Erhebung erfolgt über Stammblattdaten."]
[]
[]
[null,16,"Publizität/Öffentlichkeitsarbeit"]
[null,null,"Im Falle einer Bewilligung erklären Sie sich mit den geltenden Bestimmungen der EU zur Publizität (Verordnung (EU) Nr. 1303/2013 - dort insbesondere Art. 115 und Anhang XII) einverstanden, die u.a. die Vorgabe umfassen, die Projektbeteiligten und die Öffentlichkeit in geeigneter Form über die Finanzierung aus dem Europäischen Sozialfonds zu informieren (Publizitätspflicht)."]
[]
[]
[null,null,"Welche Publizitätsmaßnahmen sind vorgesehen? (Mehrfachnennung möglich)"]
[]
[null,null,"Pressearbeit"]
[null,null,"Film"]
[null,null,"Internet"]
[null,null,"Flyer / Faltblatt"]
[null,null,"Sonstige",null,null,"falls Sonstige, welche:"]
[]
[]
[null,17,"Projektausgaben und Projektfinanzierung  in EURO (€) (siehe Anlagen: Kostenplan und Finanzierungsplan)"]
[]
[null,null,"Beantragter Zuschuss"]
[null,null,null,null,null,null,"Gesamt",2020,2021," -","Anteil \nin %"]
[null,null,null,null,null,null,null,"1. KJ*","2. KJ"]
[null,null,"Europäischer Sozialfonds",null,null,null,{"$f":"SUM(H436:J436)","v":0},{"$f":"IF(Finanzierungsplan!F27=\" \",\"0,00\",Finanzierungsplan!F27)","v":""},{"$f":"IF(Finanzierungsplan!G27=\" \",\"0,00\",Finanzierungsplan!G27)","v":""}," -",{"$f":"IF(SUM(G436)>0,G436/$G$440*100,\"\")","v":""}]
[null,null,"Landeskofinanzierungsmittel",null,null,null,{"$f":"SUM(H437:J437)","v":0},0,0," -",0]
[null,null,"Summe beantragter Zuschuss",null,null,null,{"$f":"SUM(H438:J438)","v":0},{"$f":"IF(H436=\"\",\"\",H436+H437)","v":""},{"$f":"IF(I436=\"\",\"\",I436+I437)","v":""}," -",{"$f":"IF(SUM(G438)>0,G438/$G$440*100,\"\")","v":""}]
[null,null,"*KJ= Kalenderjahr"]
[null,null,"Summe beantragte Gesamtkosten",null,null,null,{"$f":"SUM(H440:J440)","v":0},{"$f":"Kostenplan!F16","v":0},{"$f":"Kostenplan!G16","v":0}," -",100]
[]
[]
[null,null,"Kosten in EURO (€) pro gezähltem Teilnehmereintritt (mit Stammblattdaten):",null,null,null,null,null,"Kosten in EURO (€) pro gezähltem Outputindikator 1:"]
[null,null,"Beantragter ESF-Zuschuss \npro gezähltem Teilnehmer (siehe 14.1)",null,null,null,{"$f":"IF(K370>0,G436/K370,\" \")","v":" "},null,"Beantragter ESF-Zuschuss \npro gezähltem Output (siehe 15.1)",null,null,null,{"$f":"IF(K399>0,G436/K399,\" \")","v":" "}]
[]
[null,null,"Beantragter Gesamt-Zuschuss \npro gezähltem Teilnehmer (siehe 14.1)",null,null,null,{"$f":"IF(K370>0,G438/K370,\" \")","v":" "},null,"Beantragter Gesamt-Zuschuss \npro gezähltem Output (siehe 15.1)",null,null,null,{"$f":"IF(K399>0,G438/K399,\" \")","v":" "}]
[]
[null,null,"Beantragte Gesamtkosten \npro gezähltem Teilnehmer (siehe 14.1)",null,null,null,{"$f":"IF(K370>0,G440/K370,\" \")","v":" "},null,"Beantragte Gesamtkosten \npro gezähltem Output (siehe 15.1)",null,null,null,{"$f":"IF(K399>0,G440/K399,\" \")","v":" "}]
[]
[null,18,"Führt der Antragsteller weitere ESF-geförderte Maßnahmen (vom Land oder Bund) durch?",null,null,null,null,null,null,null,"ja","nein"]
[null,null,"Wenn ja, welche:"]
[]
[]
[]
[]
[]
[]
[]
[]
[]
[]
[]
[null,19,"Bitte zutreffende Felder ankreuzen "]
[null,null,"Der Antragsteller bestätigt, dass …"]
[null,null,"►","... mit der Maßnahme noch nicht begonnen wurde und auch vor Bekanntgabe des Bewilligungsbescheides nicht begonnen wird. (Vor Erlass des Bewilligungsbescheides entstandene Aufwendungen sind nur dann förderfähig, wenn der vorzeitige Beginn der Maßnahme vorab schriftlich zugelassen wurde.)"]
[]
[null,null,"►","… er nach deutschem Mehrwertsteuerrecht zum Vorsteuerabzug"]
[null,null,null,null,"berechtigt"]
[null,null,null,null,"teilweise berechtigt, bitte in den Berechnungsgrundlagen erläutern"]
[null,null,null,null,"nicht berechtigt"]
[null,null,null,"ist und dies bei der Berechnung der Erstellung des Kosten- und Finanzierungsplans berücksichtigt hat."]
[]
[null,null,"►","… die Kofinanzierung gesichert ist."]
[]
[null,null,"►","… in den angegebenen Kofinanzierungsmitteln keine weiteren ESF-Mittel enthalten sind (z.B. des \nESF-Bundesprogramms)."]
[]
[null,null,"►","… für die bezuschussten Kosten an anderer Stelle keine europäischen Gelder bewilligt sind/werden."]
[]
[null,null,"►","… er im Falle einer Zuschussgewährung einverstanden ist, dass der Name des Zuwendungsempfängers, die Bezeichnung des Projekts einschließlich Zusammenfassung, das Datum des Beginns und des Endes des Vorhabens, der Gesamtbetrag der förderfähigen Ausgaben, der ESF-Kofinanzierungssatz pro Prioritätsachse, die Postleitzahl des Vorhabens sowie das Land in einer \"Liste der Vorhaben\" aufgenommen und veröffentlicht werden."]
[]
[null,null,"►","… ihm bekannt ist, dass im Falle einer Zuschussgewährung umfangreiche Pflichten zur Erhebung von Daten über das Projekt und seine Teilnehmenden auf ihn zukommen."]
[]
[null,null,"►","… ihm bekannt ist, dass er im Falle einer Zuschussgewährung im Rahmen der Datenerfassung verpflichtet ist, alle Projektteilnehmende über die Notwendigkeit, die Rechtmäßigkeit und den Umfang der Datenerhebung zu informieren sowie diese über deren Monitoring- und Evaluationspflichten aufzuklären, und entsprechende Einwilligungen von den Projektteilnehmenden einzuholen."]
[]
[null,null,"►","… er einverstanden ist, dass er im Falle einer Zuschussgewährung verpflichtet ist, an Monitoring- und Evaluationsmaßnahmen teilzunehmen sowie bei Prüfungen mitzuwirken und die erforderlichen Auskünfte zu erteilen. "]
[]
[null,null,"►","… er einverstanden ist, dass die für Verwaltungs-, Monitoring- und Evaluierungs- sowie Prüfzwecke notwendigen Daten edv-technisch erfasst und verarbeitet werden. "]
[null,null,null,"Wir weisen Sie insbesondere auf folgende Datenschutzerklärungen hin:"]
[null,null,null,"1. Datenschutzerklärung für den ESF-Baden-Württemberg auf "]
[null,null,null,"https://www.esf-bw.de/esf/datenschutz/"]
[null,null,null,"2. Datenschutzerklärung der L-Bank, die Sie im letzten Tabellenblatt des Antrags finden"]
[null,null,null,"Weitere Informationen erhalten Sie unter:"]
[null,null,null,"https://www.l-bank.info/datenschutz"]
[]
[null,null,"►","... ihm bekannt ist, dass alle Belege, Verträge und sonstige mit dem Zuschuss zusammenhängenden Unterlagen mindestens bis 31.12.2031 aufbewahrt werden müssen. Ihm ist zudem bekannt, dass er sie jederzeit vollständig zu Prüfungen bereitstellen können muss und jede Änderung des Aufbewahrungsortes der L-Bank mitzuteilen hat.  Diese Pflicht bleibt bei Betriebsänderungen unverändert bestehen (z.B. Einschränkung, Stilllegung, Verlegung des ganzen Betriebs oder wesentlicher Betriebsteile). Die Unterlagen müssen bei Betriebsänderungen ebenfalls bis 31.12.2031 aufbewahrt werden und jederzeit vollständig zur Prüfung bereitgestellt werden können. Jede Änderung des Aufbewahrungsortes ist auch bei Betriebsänderungen der L-Bank mitzuteilen. \nFalls sich die Aufbewahrungsfrist ändert, erfolgt eine entsprechende Information."]
[]
[null,null,"►","… die in diesem Antrag (einschließlich Anlagen) gemachten Angaben vollständig und richtig sind."]
[]
[null,20,"Als Anlagen sind beigefügt:"]
[]
[null,null,null,"Kosten- und Finanzierungsplan (einschließlich Übersicht über Personalaufwendungen als Anlage zum Antrag)"]
[]
[null,null,null,"Kofinanzierungsbestätigung(en)"]
[]
[null,null,null,"Berechnungsgrundlagen (zusätzliche Berechnungen und nachvollziehbare Erläuterungen zum Outputindikator sowie zum Kosten- und Finanzierungsplan)"]
[]
[null,null,null,"Auszug aus dem Handels- oder Vereinsregister bzw. sonstiger Nachweis der Existenz"]
[]
[null,null,null,"Weitere Anlagen zur Ergänzung der im Aufruf geforderten Angaben"]
[]
[]
[]
[]
[null,null,"Ort, Datum                              ",null,null,null," Name und Unterschrift der vertretungsberechtigten Person/en"]
[]
[]
[]
[null,null,null,null,null,null,null,null,null,null,"01 Land- und Forstwirtschaft"]
[null,null,null,null,null,null,null,null,null,null,"02 Fischerei und Aquakultur",null,null,null,"Outputindikatoren",null,"Ergebnisindikatoren",null,"EI - Zielwert"]
[null,null,null,null,null,null,null,null,null,null,"03 Herstellung von Nahrungs- und Futtermitteln, Getränkeherstellung",null,"Anzahl teilnehmender Unternehmen",null,"Zahl der unterstützten Kleinstunternehmen sowie kleinen und mittleren Unternehmen (einschl. kooperativer Unternehmen und Unternehmen der Sozialwirtschaft)   ",null,"KMU, nach deren Einschätzung die Maßnahme einen (mittel-)großen Einfluss auf betriebsspezifische Maßnahmen zur qualifizierten Unternehmensentwicklung hat.",null,"Der lt. operationellem Programm für den ESF anzustrebende Zielwert liegt bei 60%.\nDie Erhebung erfolgt über Evaluationen."]
[null,null,null,null,null,null,null,null,null,null,"04 Herstellung von Textilien und Bekleidung",null,"Anzahl Teilnehmer/innen",null,"Erwerbstätige, auch Selbständige",null,"Teilnehmer, die nach ihrer Teilnahme eine Qualifizierung erlangen.",null,"Der lt. operationellem Programm für den ESF anzustrebende Zielwert liegt bei 98%.\nDie Erhebung erfolgt über Stammblattdaten."]
[null,null,null,null,null,null,null,null,null,null,"05 Fahrzeugbau",null,null,null,"Bitte suchen Sie sich mithilfe des Dropdown den richtigen Outputindikator aus! ",null,"Bitte suchen Sie sich mithilfe des Dropdown den richtigen Ergebnisindikator aus! "]
[null,null,null,null,null,null,null,null,null,null,"06 Herstellung von Datenverarbeitungsgeräten, elektronischen und optischen Erzeugnissen"]
[null,null,null,null,null,null,null,null,null,null,"07 Sonstiges nicht spezifiziertes verarbeitendes Gewerbe"]
[null,null,null,null,null,null,null,null,null,null,"08 Baugewerbe/Bau"]
[null,null,null,null,null,null,null,null,null,null,"09 Bergbau und Gewinnung von Steinen und Erden (einschließlich zwecks Energieerzeugung betriebener Bergbau)"]
[null,null,null,null,null,null,null,null,null,null,"10 Energieversorgung"]
[null,null,null,null,null,null,null,null,null,null,"11 Wasserversorgung, Abwasser- und Abfallentsorgung und Beseitigung von Umweltverschmutzungen"]
[null,null,null,null,null,null,null,null,null,null,"12 Verkehr und Lagerei"]
[null,null,null,null,null,null,null,null,null,null,"13 Informations- und Kommunikation, einschließlich Telekommunikation, Informationsdienstleistungen, Erbringung von Dienstleistungen der Informationstechnologie"]
[null,null,null,null,null,null,null,null,null,null,"14 Handel"]
[null,null,null,null,null,null,null,null,null,null,"15 Gastgewerbe/Beherbergung und Gastronomie"]
[null,null,null,null,null,null,null,null,null,null,"16 Erbringung von Finanz- und Versicherungsdienstleistungen"]
[null,null,null,null,null,null,null,null,null,null,"17 Grundstücks- und Wohnungswesen, Vermietung und wirtschaftliche Tätigkeiten"]
[null,null,null,null,null,null,null,null,null,null,"18 Öffentliche Verwaltung"]
[null,null,null,null,null,null,null,null,null,null,"19 Erziehung und Unterricht"]
[null,null,null,null,null,null,null,null,null,null,"20 Gesundheits- und Sozialwesen"]
[null,null,null,null,null,null,null,null,null,null,"21 Sozialwesen, öffentliche und persönliche Dienstleistungen"]
[null,null,null,null,null,null,null,null,null,null,"22 Dienstleistungen im Zusammenhang mit Umwelt und Klimawandel"]
[null,null,null,null,null,null,null,null,null,null,"23 Kunst, Unterhaltung, Kreativwirtschaft und Erholung"]
[null,null,null,null,null,null,null,null,null,null,"24 Sonstige nicht spezifizierte Dienstleistungen"]
[null,null,null,null,null,null,null,null,null,null,"Bitte wählen Sie mithilfe des Dropdown die zutreffende Branche aus! "]

{"sheet":"Kostenplan","index":1,"n_rows":16,"n_cols":7,"rows_kept":16,"cut":false,"hidden":false,"merged":[[1,1,1,7],[4,4,5,4],[5,1,5,2],[8,2,8,3],[9,2,9,3],[10,1,10,3],[13,2,13,3],[15,1,15,3],[3,1,3,2],[7,2,7,7]]}
[]
[null,"Anlage Kostenplan für Fördermittel aus dem Europäischen Sozialfonds (Förderperiode 2014 - 2020) "]
[]
[null,"Pauschale"]
[null,null,null,null,"Gesamt",2020,2021]
[null,"Beträge in EURO (€)",null,null,null,"1. Kalenderjahr","2. Kalenderjahr"]
[]
[null,"A.","Ausgaben des Vorhabens (Art. 14 Abs. 2 VO (EU) Nr. 1304/2013)"]
[null,"1.1","Direkte Personalausgaben",null,{"$f":"SUM(F9:H9)","v":0},{"$f":"'Anlage zum Antrag'!J113","v":0},{"$f":"'Anlage zum Antrag'!J208","v":0}]
[null,"1.6","Indirekte Kosten (Zuschlag 15% auf Position 1.1)",null,{"$f":"SUM(F10:H10)","v":0},{"$f":"IF(F9=0,\" \",F9*0.15)","v":" "},{"$f":"IF(G9=0,\" \",G9*0.15)","v":" "}]
[null,"Summe A (Ausgaben des Vorhabens)",null,null,{"$f":"SUM(F11:H11)","v":0},{"$f":"SUM(F9:F10)","v":0},{"$f":"SUM(G9:G10)","v":0}]
[]
[null,"C.","Abzüglich erwirtschaftete Einnahmen"]
[null,"5.","Im Projekt erwirtschaftete Einnahmen (z.B. aus Verkauf von Waren oder Dienstleistungen; NICHT: Teilnahmegebühren - siehe Finanzierungsplan A 1.2 )",null,{"$f":"SUM(F14:H14)","v":0}]
[]
[null,"Summe förderfähige Ausgaben",null,null,{"$f":"SUM(F16:H16)","v":0},{"$f":"F11-F14","v":0},{"$f":"G11-G14","v":0}]

{"sheet":"Finanzierungsplan","index":2,"n_rows":34,"n_cols":7,"rows_kept":34,"cut":false,"hidden":false,"merged":[[21,2,21,3],[22,2,22,3],[23,2,23,3],[15,2,15,3],[16,2,16,3],[18,2,18,3],[19,2,19,3],[20,2,20,3],[33,4,33,7],[25,2,25,3],[26,1,26,3],[28,1,28,3],[30,1,30,3],[31,1,31,3],[24,2,24,3],[1,1,1,8],[4,1,4,2],[10,2,10,7],[6,1,6,2],[9,1,9,2],[9,3,9,4],[9,5,9,6],[3,4,4,4],[5,1,5,3],[7,1,7,3],[8,1,8,3],[12,2,12,3],[13,2,13,3],[11,1,11,7],[14,2,14,3]]}
[]
[null,"Anlage Finanzierungsplan für Fördermittel aus dem Europäischen Sozialfonds (Förderperiode 2014 - 2020)"]
[]
[null,null,null,null,"Gesamt",2020,2021]
[null,null,null,null,null,"1. Kalenderjahr","2. Kalenderjahr"]
[null,"zu finanzierende förderfähige Ausgaben gem. Kostenplan",null,null,{"$f":"Kostenplan!E16","v":0},{"$f":"Kostenplan!F16","v":0},{"$f":"Kostenplan!G16","v":0}]
[null,"daraus ergeben sich folgende Beträge:"]
[null,"70 % ESF-Kofinanzierung",null,null,{"$f":"(IF(E6=0,\"\",E6*70%))","v":""},{"$f":"(IF(F6=0,\"\",F6*70%))","v":""},{"$f":"(IF(G6=0,\"\",G6*70%))","v":""}]
[null,"30 % zu erbringende Eigen- und Fremdfinanzierung",null,null,{"$f":"(IF(E6=0,\"\",E6*30%))","v":""},{"$f":"(IF(F6=0,\"\",F6*30%))","v":""},{"$f":"(IF(G6=0,\"\",G6*30%))","v":""}]
[]
[null,"A.","Echte Finanzierung: Eigen- und Fremdfinanzierung"]
[null,"Bitte tragen Sie in die weiß hinterlegten Felder ein, welche Eigen- und Fremdmittel (Finanzierungsbeiträge Dritter) Sie einsetzen, um die Gesamtfinanzierung sicherzustellen. Die gegebenenfalls möglichen Zuschussbeiträge aus ESF- und Landesmitteln sind bereits ausgewiesen."]
[null,"1.","Private Mittel (Summe 1.1 - 1.4)",null,{"$f":"SUM(F13:H13)","v":0},{"$f":"SUM(F14:F17)","v":0},{"$f":"SUM(G14:G17)","v":0}]
[null,null,"1.1 Eigene Mittel privater Antragsteller",null,{"$f":"SUM(F14:H14)","v":0}]
[null,null,"1.2 Teilnahmegebühren",null,{"$f":"SUM(F15:H15)","v":0}]
[null,null,"1.3 Einnahmen von privaten Dritten während der Durchführung des Vorhabens",null,{"$f":"SUM(F16:H16)","v":0}]
[null,null,"1.4 Sonstige Mittel privater Dritter (z.B. kirchliche Mittel)",null,{"$f":"SUM(F17:H17)","v":0}]
[]
[null,"2.","Öffentliche Mittel (Summe 2.1 - 2.7)",null,{"$f":"SUM(F19:H19)","v":0},{"$f":"SUM(F20:F26)","v":0},{"$f":"SUM(G20:G26)","v":0}]
[null,null,"2.1 Eigene Mittel öffentlicher Antragsteller",null,0]
[null,null,"2.2 Bundesmittel",null,0]
[null,null,"2.3 Landeskofinanzierungsmittel",null,0,0,0]
[null,null,"2.4 Sonstige Landesmittel",null,0]
[null,null,"2.5 Kommunale Mittel (nicht des Antragstellers)",null,0]
[null,null,"2.6  Einnahmen von öffentlichen Einrichtungen während der Durchführung des Vorhabens",null,0]
[null,null,"2.7 Sonstige öffentliche Mittel",null,0]
[null,"Summe ESF-Finanzierung (70%)",null,null,{"$f":"E8","v":""},{"$f":"F8","v":""},{"$f":"G8","v":""}]
[]
[null,"Gesamtsumme Finanzierung",null,null,{"$f":"IF(E27=\"\",\"\",E13+E19+E27)","v":""},{"$f":"IF(F27=\"\",\"\",F13+F19+F27)","v":""},{"$f":"IF(G27=\"\",\"\",G13+G19+G27)","v":""}]
[]
[null,"Summe Eigen- und Fremdfinanzierung",null,null,{"$f":"IF((E13+E19)=0,\"\",SUM(F31:H31))","v":""},{"$f":"IF((F13+F19)=0,\"\",F13+F19-F22)","v":""},{"$f":"IF((G13+G19)=0,\"\",G13+G19-G22)","v":""}]
[null,"Differenz erwartete Eigen- und Fremdfinanzierung (Zeile 9)\nzu Eintragungen",null,null,{"$f":"IF(E31=\"\",\"\",SUM(F32:H32))","v":""},{"$f":"IF(F31=\"\",\"\",F9-F31)","v":""},{"$f":"IF(G31=\"\",\"\",G9-G31)","v":""}]
[]
[null,null,null,null,{"$f":"\"Hinweis: Wenn Beträge in roter Schrift ausgewiesen sind, stimmen Ausgaben und Finanzierung nicht überein. Überprüfen Sie bitte Ihre eingesetzte Eigen- und Fremdfinanzierung.\"","v":"Hinweis: Wenn Beträge in roter Schrift ausgewiesen sind, stimmen Ausgaben und Finanzierung nicht überein. Überprüfen Sie bitte Ihre eingesetzte Eigen- und Fremdfinanzierung."}]

{"sheet":"Anlage zum Antrag","index":3,"n_rows":208,"n_cols":13,"rows_kept":208,"cut":false,"hidden":false,"merged":[[203,3,203,4],[203,5,203,7],[204,3,204,4],[204,5,204,7],[207,4,207,8],[200,3,200,4],[200,5,200,7],[201,3,201,4],[201,5,201,7],[202,3,202,4],[202,5,202,7],[197,3,197,4],[197,5,197,7],[198,3,198,4],[198,5,198,7],[199,3,199,4],[199,5,199,7],[194,3,194,4],[194,5,194,7],[195,3,195,4],[195,5,195,7],[196,3,196,4],[196,5,196,7],[191,3,191,4],[191,5,191,7],[192,3,192,4],[192,5,192,7],[193,3,193,4],[193,5,193,7],[185,5,185,6],[186,5,186,6],[188,1,188,3],[189,3,189,4],[189,5,189,7],[190,3,190,4],[190,5,190,7],[179,5,179,6],[180,5,180,6],[181,5,181,6],[182,5,182,6],[183,5,183,6],[184,5,184,6],[172,5,172,6],[173,1,173,9],[174,5,174,6],[175,5,175,6],[177,5,177,6],[178,5,178,6],[166,1,166,9],[167,1,167,5],[167,7,167,8],[168,1,168,9],[169,1,169,9],[171,1,171,3],[159,1,159,9],[160,1,160,9],[161,1,161,9],[162,1,162,9],[163,1,163,9],[164,1,164,9],[153,4,153,5],[153,6,153,7],[155,1,155,9],[156,1,156,9],[157,1,157,9],[158,1,158,9],[150,4,150,5],[150,6,150,7],[151,4,151,5],[151,6,151,7],[152,4,152,5],[152,6,152,7],[147,4,147,5],[147,6,147,7],[148,4,148,5],[148,6,148,7],[149,4,149,5],[149,6,149,7],[144,4,144,5],[144,6,144,7],[145,4,145,5],[145,6,145,7],[146,4,146,5],[146,6,146,7],[141,4,141,5],[141,6,141,7],[142,4,142,5],[142,6,142,7],[143,1,143,8],[143,11,143,18],[136,1,136,5],[136,7,136,8],[138,1,138,9],[139,1,139,8],[140,4,140,5],[140,6,140,7],[132,2,132,3],[132,4,132,6],[132,7,132,8],[133,2,133,3],[133,4,133,6],[133,7,133,8],[130,2,130,3],[130,4,130,6],[130,7,130,8],[131,2,131,3],[131,4,131,6],[131,7,131,8],[128,2,128,3],[128,4,128,6],[128,7,128,8],[129,2,129,3],[129,4,129,6],[129,7,129,8],[126,2,126,3],[126,4,126,6],[126,7,126,8],[127,2,127,3],[127,4,127,6],[127,7,127,8],[123,1,123,8],[123,11,123,18],[124,2,124,3],[124,4,124,6],[124,7,124,8],[125,2,125,3],[125,4,125,6],[125,7,125,8],[119,1,119,8],[120,2,120,3],[120,4,120,6],[120,7,120,8],[121,1,121,8],[122,2,122,3],[122,4,122,6],[122,7,122,8],[115,1,115,5],[115,7,115,8],[117,1,117,9],[118,2,118,3],[118,4,118,6],[118,7,118,8],[108,3,108,4],[108,5,108,7],[109,3,109,4],[109,5,109,7],[112,4,112,8],[114,2,114,6],[105,3,105,4],[105,5,105,7],[106,3,106,4],[106,5,106,7],[107,3,107,4],[107,5,107,7],[102,3,102,4],[102,5,102,7],[103,3,103,4],[103,5,103,7],[104,3,104,4],[104,5,104,7],[99,3,99,4],[99,5,99,7],[100,3,100,4],[100,5,100,7],[101,3,101,4],[101,5,101,7],[96,3,96,4],[96,5,96,7],[97,3,97,4],[97,5,97,7],[98,3,98,4],[98,5,98,7],[90,5,90,6],[91,5,91,6],[93,1,93,3],[94,3,94,4],[94,5,94,7],[95,3,95,4],[95,5,95,7],[84,5,84,6],[85,5,85,6],[86,5,86,6],[87,5,87,6],[88,5,88,6],[89,5,89,6],[77,5,77,6],[78,1,78,9],[79,5,79,6],[80,5,80,6],[82,5,82,6],[83,5,83,6],[70,1,70,9],[71,1,71,5],[71,7,71,8],[73,1,73,9],[74,1,74,9],[76,1,76,3],[63,1,63,9],[64,1,64,9],[65,1,65,9],[66,1,66,9],[67,1,67,9],[68,1,68,9],[57,4,57,5],[57,6,57,7],[59,1,59,9],[60,1,60,9],[61,1,61,9],[62,1,62,9],[54,4,54,5],[54,6,54,7],[55,4,55,5],[55,6,55,7],[56,4,56,5],[56,6,56,7],[51,4,51,5],[51,6,51,7],[52,4,52,5],[52,6,52,7],[53,4,53,5],[53,6,53,7],[48,4,48,5],[48,6,48,7],[49,4,49,5],[49,6,49,7],[50,4,50,5],[50,6,50,7],[45,4,45,5],[45,6,45,7],[46,4,46,5],[46,6,46,7],[47,1,47,8],[47,11,47,18],[40,1,40,5],[40,7,40,8],[42,1,42,9],[43,1,43,8],[44,4,44,5],[44,6,44,7],[36,2,36,3],[36,4,36,6],[36,7,36,8],[37,2,37,3],[37,4,37,6],[37,7,37,8],[34,2,34,3],[34,4,34,6],[34,7,34,8],[35,2,35,3],[35,4,35,6],[35,7,35,8],[32,2,32,3],[32,4,32,6],[32,7,32,8],[33,2,33,3],[33,4,33,6],[33,7,33,8],[30,2,30,3],[30,4,30,6],[30,7,30,8],[31,2,31,3],[31,4,31,6],[31,7,31,8],[28,2,28,3],[28,4,28,6],[28,7,28,8],[29,2,29,3],[29,4,29,6],[29,7,29,8],[25,1,25,8],[26,2,26,3],[26,4,26,6],[26,7,26,8],[27,1,27,8],[27,11,27,18],[21,1,21,9],[22,2,22,3],[22,4,22,6],[22,7,22,8],[23,1,23,8],[24,2,24,3],[24,4,24,6],[24,7,24,8],[17,1,17,3],[17,7,17,10],[20,1,20,5],[20,7,20,8],[8,1,8,3],[9,1,9,5],[10,1,10,3],[10,5,10,9],[12,1,12,3],[12,5,12,9],[3,5,3,6],[3,8,3,9],[4,5,4,6],[4,8,4,9],[6,1,6,10],[7,8,7,9],[14,1,14,9],[16,1,16,3],[16,7,16,9]]}
[]
[]
[]
[null,null,null,null,null,null,null,null,"EUROPÄISCHE UNION"]
[null,null,"                   "]
[]
[null,"Übersicht über Personalausgaben als Anlage zum Antrag"]
[null,null,null,null,null,null,null,null,"Stand: Juli 2014"]
[null,"Für den Durchführungszeitraum von:",null,null,null,{"$f":"IF(Antragsformular!G97=\"\",\"\",Antragsformular!G97)","v":"2020-01-01"},null," bis ",{"$f":"IF(Antragsformular!J97=\"\",\"\",Antragsformular!J97)","v":"2021-09-30"}]
[]
[null,"Name des Antragstellers",null,null,null,{"$f":"IF(Antragsformular!E24=\"\",\"\",Antragsformular!E24)","v":""}]
[]
[null,"Kurzname der ESF-Fördermaßnahme",null,null,null,{"$f":"IF(Antragsformular!H95=\"\",\"\",Antragsformular!H95)","v":"Arbeitsausbeutung EU"}]
[]
[null,"Hinweise: \n\n> Bitte füllen Sie die nachstehenden Übersichten getrennt nach Kalenderjahren aus.\n\n> Freistellungserklärung: Bitte geben Sie zunächst für das interne Personal den Beschäftigungsumfang beim Träger insgesamt und dann den Beschäftigungsumfang anteilig davon im beantragten ESF-Projekt an.\n                                           \n> Bei Änderungen des Beschäftigungsumfangs insgesamt oder im ESF-Projekt einer/eines Beschäftigten innerhalb eines Kalenderjahrs verwenden Sie bitte je Konstellation eine separate Zeile.\n\n> Die Angaben zu Name der/des Beschäftigten, Beschäftigungsumfang insgesamt und im ESF-Projekt werden automatisch an die entsprechenden Stellen in den nachfolgenden Übersichten \"Gesamtübersicht\" und \"Übersicht über Personalausgaben\" übernommen. Bitte füllen Sie die noch offenen Felder (weißen Felder) aus."]
[]
[]
[null,"Ort, Datum",null,null,null,null,null,"Name und Unterschrift der vertretungsberechtigten Person/en"]
[]
[]
[null,"Freistellungserklärungen für internes Projektpersonal für das Jahr",null,null,null,null,2020,"(1. Kalenderjahr)"]
[null,"Wir bestätigen, dass für die Durchführung der oben genannten Fördermaßnahme folgende Mitarbeiter/innen (internes Personal) für das erste Kalenderjahr mindestens für den angegebenen Stundenumfang freigestellt werden:"]
[null,"\nlfd. Nr.","\nName der/des Beschäftigten\n(Name, Vorname) ",null,"\nBeschäftigungsumfang insgesamt beim Träger\nin Prozent",null,null,"\ndavon im beantragten ESF-Projekt tätig\n in Prozent"]
[null,"Beispiel 1 (B 1): Der/die Mitarbeiter/in wird während eines vollen Kalenderjahres (Zeitraum 12 Monate) zu 75% beim Träger beschäftigt sein. Von seiner/ihrer Gesamtbeschäftigung werden 50 % auf Tätigkeiten im ESF-Projekt entfallen; in den restlichen 50 % wird der/die Mitarbeiter/in beim Träger für andere nicht projektbezogene Tätigkeiten eingesetzt werden."]
[null,"B 1","Name, Vorname",null,0.75,null,null,0.5]
[null,"Beispiel 2 (B 2): Der/die Mitarbeiter/in wird lediglich sechs Monate zu 50% beim Träger beschäftigt sein. Er/sie arbeitete ausschließlich, also zu 100% für das ESF-Projekt."]
[null,"B 2","Name, Vorname",null,0.5,null,null,1]
[null,null,null,null,null,null,null,null,null,null,null,"Hilfstabelle in Zellen L30 bis L39 : Achtung diese Zellen (L30:L39)  nicht löschen, sonst stimmt die Formel in Zelle B 41 nicht!!"]
[null,"1.",null,null,null,null,null,null,null,null,null,{"$f":"IF(OR(E29>100%,H29>100%),\"Sie haben einen Beschäftigungsumfang von mehr als 100% eingegeben. Bitte überprüfen Sie Ihre Angaben.\",\" \")","v":" "}]
[null,"2.",null,null,null,null,null,null,null,null,null," "]
[null,"3.",null,null,null,null,null,null,null,null,null," "]
[null,"4.",null,null,null,null,null,null,null,null,null," "]
[null,"5.",null,null,null,null,null,null,null,null,null," "]
[null,"6.",null,null,null,null,null,null,null,null,null," "]
[null,"7.",null,null,null,null,null,null,null,null,null," "]
[null,"8.",null,null,null,null,null,null,null,null,null," "]
[null,"9.",null,null,null,null,null,null,null,null,null," "]
[null,"10.",null,null,null,null,null,null,null,null,null," "]
[]
[]
[null,"Gesamtübersicht über internes Projektpersonal für das Jahr",null,null,null,null,{"$f":"IF(G21=\"\",\"\",G21)","v":2020},"(1. Kalenderjahr)"]
[]
[null,"Hinweise:\n\n> Sofern der/die Beschäftigte für sonstige bezuschusste Maßnahmen des Landes / des Bundes / der EU tätig ist, erläutern Sie dies bitte in einer gesonderten Anlage.\n\n> Der Gesamtbeschäftigungsumfang (Summenfeld - Addition aus den drei vorangegangenen Feldern) muss immer 100% ergeben."]
[null,{"$f":"IF(OR(L29<>\" \",L30<>\" \",L31<>\" \",L32<>\" \",L33<>\" \",L34<>\" \",L35<>\" \",L36<>\" \",L37<>\" \",L38<>\" \"),\"Sie haben einen Beschäftigungsumfang von mehr als 100% eingegeben. Bitte überprüfen Sie Ihre Angaben.\",\" \")","v":" "}]
[null,"\nlfd. Nr.","Name der/des Beschäftigten","Beschäftigungsumfang insgesamt beim Träger\nin Prozent","davon im beantragten ESF-Projekt tätig\n in Prozent",null,"davon in sonstigen bezuschussten Maßnahmen des Landes / des Bundes / der EU tätig\n in Prozent",null,"davon beim Träger anderweitig beschäftigt\nin Prozent","Gesamtbeschäftigungs-umfang (Summenfeld)"]
[null,"B 1 ",{"$f":"C25","v":"Name, Vorname"},{"$f":"IF(E25>0,E25,\" \")","v":0.75},{"$f":"IF(H25>0,H25,\" \")","v":0.5},null,0,null,0.5,{"$f":"IF(E46>0,E46+G46+I46,\" \")","v":1}]
[null,"B 2",{"$f":"C27","v":"Name, Vorname"},{"$f":"IF(E27>0,E27,\" \")","v":0.5},{"$f":"IF(H27>0,H27,\" \")","v":1},null,0,null,0,{"$f":"IF(E47>0,E47+G47+I47,\" \")","v":1}]
[]
[null,"1.",{"$f":"IF(C29>0,C29,\" \")","v":" "},{"$f":"IF(E29=\"\",\"\",E29)","v":""},{"$f":"IF(H29=\"\",\"\",H29)","v":""},null,null,null,null,{"$f":"IF(E49=\"\",\"\",E49+G49+I49)","v":""}]
[null,"2."," ","","",null,null,null,null,""]
[null,"3."," ","","",null,null,null,null,""]
[null,"4."," ","","",null,null,null,null,""]
[null,"5."," ","","",null,null,null,null,""]
[null,"6."," ","","",null,null,null,null,""]
[null,"7."," ","","",null,null,null,null,""]
[null,"8."," ","","",null,null,null,null,""]
[null,"9."," ","","",null,null,null,null,""]
[null,"10."," ","","",null,null,null,null,""]
[null,null,null,null,null,null,null,null,null,null,null,null,"Felder Warnmeldung"]
[null,{"$f":"IF(OR(J49=100%, J49=\"\",),\"\", \"Der Gesamtbeschäftigungsumfang liegt nicht bei 100%. Bitte überprüfen Sie Ihre Eingaben bei lfd. Nr.1.\")","v":""}]
[null,{"$f":"IF(OR(J50=100%, J50=\"\",),\"\", \"Der Gesamtbeschäftigungsumfang liegt nicht bei 100%. Bitte überprüfen Sie Ihre Eingaben bei lfd. Nr.2.\")","v":""}]
[null,{"$f":"IF(OR(J51=100%, J51=\"\",),\"\", \"Der Gesamtbeschäftigungsumfang liegt nicht bei 100%. Bitte überprüfen Sie Ihre Eingaben bei lfd. Nr.3.\")","v":""}]
[null,{"$f":"IF(OR(J52=100%, J52=\"\",),\"\", \"Der Gesamtbeschäftigungsumfang liegt nicht bei 100%. Bitte überprüfen Sie Ihre Eingaben bei lfd. Nr.4.\")","v":""}]
[null,{"$f":"IF(OR(J53=100%, J53=\"\",),\"\", \"Der Gesamtbeschäftigungsumfang liegt nicht bei 100%. Bitte überprüfen Sie Ihre Eingaben bei lfd. Nr.5.\")","v":""}]
[null,{"$f":"IF(OR(J54=100%, J54=\"\",),\"\", \"Der Gesamtbeschäftigungsumfang liegt nicht bei 100%. Bitte überprüfen Sie Ihre Eingaben bei lfd. Nr.6.\")","v":""}]
[null,{"$f":"IF(OR(J55=100%, J55=\"\",),\"\", \"Der Gesamtbeschäftigungsumfang liegt nicht bei 100%. Bitte überprüfen Sie Ihre Eingaben bei lfd. Nr.7.\")","v":""}]
[null,{"$f":"IF(OR(J56=100%, J56=\"\",),\"\", \"Der Gesamtbeschäftigungsumfang liegt nicht bei 100%. Bitte überprüfen Sie Ihre Eingaben bei lfd. Nr.8.\")","v":""}]
[null,{"$f":"IF(OR(J57=100%, J57=\"\",),\"\", \"Der Gesamtbeschäftigungsumfang liegt nicht bei 100%. Bitte überprüfen Sie Ihre Eingaben bei lfd. Nr.9.\")","v":""}]
[null,{"$f":"IF(OR(J58=100%, J58=\"\",),\"\", \"Der Gesamtbeschäftigungsumfang liegt nicht bei 100%. Bitte überprüfen Sie Ihre Eingaben bei lfd. Nr.10.\")","v":""}]
[]
[]
[null,"Übersicht über Personalausgaben für das Jahr",null,null,null,null,{"$f":"IF(G21=\"\",\"\",G21)","v":2020},"(1. Kalenderjahr)"]
[]
["\n>","Hinweis: \nZuwendungsempfänger, deren Gesamtausgaben überwiegend aus Zuwendungen der öffentlichen Hand bestritten werden, unterliegen dem Besserstellungsverbot.\nDas Besserstellungsverbot ist eingehalten, wenn die Beschäftigten tatsächlich (in der Summe) nicht finanziell bessergestellt sind als vergleichbare Landesbedienstete."]
[">","In den geltend gemachten Personalausgaben dürfen nur enthalten sein: Bruttolohn, Sozialabgaben des Arbeitgebers, Sonderzahlungen wie Urlaubs- und Weihnachtsgeld - soweit tariflich oder arbeitsvertraglich geregelt."]
[]
[null,"A - internes Personal"]
[null,"lfd. Nr.","Funktion/Aufgaben ","Name der/des Beschäftigten ","Tarifvertrag (gängige Abkürzung) und tarifliche Eingruppierung","Personalausgaben insgesamt in und außerhalb des Projekts inkl. Sozialabgaben und sonstige Arbeitgeberanteile im 1. Kalenderjahr \n(in EURO)",null,"Beschäftigungsumfang insgesamt beim Träger \n(in Prozent)","Beschäftigungsumfang im ESF-Projekt (in Bezug auf die Gesamtbeschäftigung beim Träger) \n(in Prozent)","Personalausgaben inkl. Sozialabgaben und sonstige Arbeitgeber-anteile, die auf das ESF-Projekt entfallen\n(in EURO)"]
[null,"Beispiele: Im Beispiel 1 werden für das 1. Kalenderjahr von 12 Monaten 45.000,00 € förderfähige Personalausgaben laut Buchhaltungsdaten anfallen. Im Beispiel 2 werden für eine lediglich 6-monatige Beschäftigung während des 1. Kalenderjahrs 15.000,00 € förderfähige Personalausgaben laut Buchhaltungsdaten anfallen."]
[null,"B 1","Ausbilder/in","Name, Vorname","TVöD E 12",45000,null,0.75,0.5,{"$f":"IF(F80>0, I80*F80,\"\")","v":22500}]
[null,"B 2","Berufswerber/in","Name, Vorname","TVöD E 12",15000,null,0.5,1,{"$f":"IF(F81>0, I81*F81,\"\")","v":15000}]
[]
[null,"1.",null,{"$f":"IF(C29>0,C29,\" \")","v":" "},null,null,null,{"$f":"IF(E29>0,E29,\" \")","v":" "},{"$f":"IF(H29>0,H29,\" \")","v":" "},{"$f":"IF(F83>0, I83*F83,\"\")","v":""}]
[null,"2.",null," ",null,null,null," "," ",""]
[null,"3.",null," ",null,null,null," "," ",""]
[null,"4.",null," ",null,null,null," "," ",""]
[null,"5.",null," ",null,null,null," "," ",""]
[null,"6.",null," ",null,null,null," "," ",""]
[null,"7.",null," ",null,null,null," "," ",""]
[null,"8.",null," ",null,null,null," "," ",""]
[null,"9.",null," ",null,null,null," "," ",""]
[null,"10.",null," ",null,null,null," "," ",""]
[null,null,null,null,null,null,null,null,"Summe internes Personal:",{"$f":"SUM(J83:J92)","v":0}]
[null,"B - externes Personal"]
[null,"lfd. Nr.","Funktion/Aufgaben ","Name der/des Beschäftigten",null,"Honorar pro Stunde \n(in EURO)",null,null,"Beschäftigungsumfang im ESF-Projekt (Stunden insgesamt)","Honoraraufwendungen, die auf das ESF-Projekt entfallen \n(in EURO)"]
[null,"1.",null,null,null,null,null,null,null,{"$f":"IF(F96>0, I96*F96,\"\")","v":""}]
[null,"2.",null,null,null,null,null,null,null,""]
[null,"3.",null,null,null,null,null,null,null,""]
[null,"4.",null,null,null,null,null,null,null,""]
[null,"5.",null,null,null,null,null,null,null,""]
[null,"6.",null,null,null,null,null,null,null,""]
[null,"7.",null,null,null,null,null,null,null,""]
[null,"8.",null,null,null,null,null,null,null,""]
[null,"9.",null,null,null,null,null,null,null,""]
[null,"10.",null,null,null,null,null,null,null,""]
[null,"11.",null,null,null,null,null,null,null,""]
[null,"12.",null,null,null,null,null,null,null,""]
[null,"13.",null,null,null,null,null,null,null,""]
[null,"14.",null,null,null,null,null,null,null,""]
[null,"15.",null,null,null,null,null,null,null,""]
[null,null,null,null,null,null,null,null,"Summe externes Personal:",{"$f":"SUM(J96:J110)","v":0}]
[]
[null,null,null,null,"Gesamtpersonalausgaben (1. Kalenderjahr):",null,null,null,null,{"$f":"ROUND(J111+J93,2)","v":0}]
[]
[null,null,"Nur auszufüllen, wenn der Durchführungszeitraum mehrere Kalenderjahre umfasst."]
[null,"Freistellungserklärungen für internes Projektpersonal für das Jahr",null,null,null,null,2021,"(2. Kalenderjahr)"]
[]
[null,"Wir bestätigen, dass für die Durchführung der oben genannten Fördermaßnahme folgende Mitarbeiter/innen (internes Personal) für das zweite Kalenderjahr mindestens für den angegebenen Stundenumfang freigestellt werden:"]
[null,"\nlfd. Nr.","\nName der/des Beschäftigten\n(Name, Vorname) ",null,"\nBeschäftigungsumfang insgesamt beim Träger\nin Prozent",null,null,"\ndavon im beantragten ESF-Projekt tätig\n in Prozent"]
[null,"Beispiel 1 (B 1): Der/die Mitarbeiter/in wird während eines vollen Kalenderjahres (Zeitraum 12 Monate) zu 75% beim Träger beschäftigt sein. Von seiner/ihrer Gesamtbeschäftigung werden 50 % auf Tätigkeiten im ESF-Projekt entfallen; in den restlichen 50 % wird der/die Mitarbeiter/in beim Träger für andere nicht projektbezogene Tätigkeiten eingesetzt werden."]
[null,"B 1","Name, Vorname",null,0.75,null,null,0.5]
[null,"Beispiel 2 (B 2): Der/die Mitarbeiter/in wird lediglich sechs Monate zu 50% beim Träger beschäftigt sein. Er/sie arbeitete ausschließlich, also zu 100% für das ESF-Projekt."]
[null,"B 2","Name, Vorname",null,0.5,null,null,1]
[null,null,null,null,null,null,null,null,null,null,null,"Hilfstabelle in Zellen L30 bis L39 : Achtung diese Zellen (L30:L39)  nicht löschen, sonst stimmt die Formel in Zelle B 41 nicht!!"]
[null,"1.",null,null,null,null,null,null,null,null,null,{"$f":"IF(OR(E125>100%,H125>100%),\"Sie haben einen Beschäftigungsumfang von mehr als 100% eingegeben. Bitte überprüfen Sie Ihre Angaben.\",\" \")","v":" "}]
[null,"2.",null,null,null,null,null,null,null,null,null," "]
[null,"3.",null,null,null,null,null,null,null,null,null," "]
[null,"4.",null,null,null,null,null,null,null,null,null," "]
[null,"5.",null,null,null,null,null,null,null,null,null," "]
[null,"6.",null,null,null,null,null,null,null,null,null," "]
[null,"7.",null,null,null,null,null,null,null,null,null," "]
[null,"8.",null,null,null,null,null,null,null,null,null," "]
[null,"9.",null,null,null,null,null,null,null,null,null," "]
[null,"10.",null,null,null,null,null,null,null,null,null," "]
[]
[]
[null,"Gesamtübersicht über internes Projektpersonal für das Jahr",null,null,null,null,{"$f":"IF(G116=\"\",\"\",G116)","v":2021},"(2. Kalenderjahr)"]
[]
[null,"Hinweise:\n\n> Sofern der/die Beschäftigte für sonstige bezuschusste Maßnahmen des Landes / des Bundes / der EU tätig ist, erläutern Sie dies bitte in einer gesonderten Anlage.\n\n> Der Gesamtbeschäftigungsumfang (Summenfeld - Addition aus den drei vorangegangenen Feldern) muss immer 100% ergeben."]
[null,{"$f":"IF(OR(L125<>\" \",L126<>\" \",L127<>\" \",L128<>\" \",L129<>\" \",L130<>\" \",L131<>\" \",L132<>\" \",L133<>\" \",L134<>\" \"),\"Sie haben einen Beschäftigungsumfang von mehr als 100% eingegeben. Bitte überprüfen Sie Ihre Angaben.\",\" \")","v":" "}]
[null,"\nlfd. Nr.","Name der/des Beschäftigten","Beschäftigungsumfang insgesamt beim Träger\nin Prozent","davon im beantragten ESF-Projekt tätig\n in Prozent",null,"davon in sonstigen bezuschussten Maßnahmen des Landes / des Bundes / der EU tätig\n in Prozent",null,"davon beim Träger anderweitig beschäftigt\nin Prozent","Gesamtbeschäftigungs-umfang (Summenfeld)"]
[null,"B 1 ",{"$f":"C121","v":"Name, Vorname"},{"$f":"IF(E121>0,E121,\" \")","v":0.75},{"$f":"IF(H121>0,H121,\" \")","v":0.5},null,0,null,0.5,{"$f":"IF(E142>0,E142+G142+I142,\" \")","v":1}]
[null,"B 2",{"$f":"C123","v":"Name, Vorname"},{"$f":"IF(E123>0,E123,\" \")","v":0.5},{"$f":"IF(H123>0,H123,\" \")","v":1},null,0,null,0,{"$f":"IF(E143>0,E143+G143+I143,\" \")","v":1}]
[]
[null,"1.",{"$f":"IF(C125>0,C125,\" \")","v":" "},{"$f":"IF(E125=\"\",\"\",E125)","v":""},{"$f":"IF(H125=\"\",\"\",H125)","v":""},null,null,null,null,{"$f":"IF(E145=\"\",\"\",E145+G145+I145)","v":""}]
[null,"2."," ","","",null,null,null,null,""]
[null,"3."," ","","",null,null,null,null,""]
[null,"4."," ","","",null,null,null,null,""]
[null,"5."," ","","",null,null,null,null,""]
[null,"6."," ","","",null,null,null,null,""]
[null,"7."," ","","",null,null,null,null,""]
[null,"8."," ","","",null,null,null,null,""]
[null,"9."," ","","",null,null,null,null,""]
[null,"10."," ","","",null,null,null,null,""]
[null,null,null,null,null,null,null,null,null,null,null,null,"Felder Warnmeldung"]
[null,{"$f":"IF(OR(J145=100%, J145=\"\",),\"\", \"Der Gesamtbeschäftigungsumfang liegt nicht bei 100%. Bitte überprüfen Sie Ihre Eingaben bei lfd. Nr.1.\")","v":""}]
[null,{"$f":"IF(OR(J146=100%, J146=\"\",),\"\", \"Der Gesamtbeschäftigungsumfang liegt nicht bei 100%. Bitte überprüfen Sie Ihre Eingaben bei lfd. Nr.2.\")","v":""}]
[null,{"$f":"IF(OR(J147=100%, J147=\"\",),\"\", \"Der Gesamtbeschäftigungsumfang liegt nicht bei 100%. Bitte überprüfen Sie Ihre Eingaben bei lfd. Nr.3.\")","v":""}]
[null,{"$f":"IF(OR(J148=100%, J148=\"\",),\"\", \"Der Gesamtbeschäftigungsumfang liegt nicht bei 100%. Bitte überprüfen Sie Ihre Eingaben bei lfd. Nr.4.\")","v":""}]
[null,{"$f":"IF(OR(J149=100%, J149=\"\",),\"\", \"Der Gesamtbeschäftigungsumfang liegt nicht bei 100%. Bitte überprüfen Sie Ihre Eingaben bei lfd. Nr.5.\")","v":""}]
[null,{"$f":"IF(OR(J150=100%, J150=\"\",),\"\", \"Der Gesamtbeschäftigungsumfang liegt nicht bei 100%. Bitte überprüfen Sie Ihre Eingaben bei lfd. Nr.6.\")","v":""}]
[null,{"$f":"IF(OR(J151=100%, J151=\"\",),\"\", \"Der Gesamtbeschäftigungsumfang liegt nicht bei 100%. Bitte überprüfen Sie Ihre Eingaben bei lfd. Nr.7.\")","v":""}]
[null,{"$f":"IF(OR(J152=100%, J152=\"\",),\"\", \"Der Gesamtbeschäftigungsumfang liegt nicht bei 100%. Bitte überprüfen Sie Ihre Eingaben bei lfd. Nr.8.\")","v":""}]
[null,{"$f":"IF(OR(J153=100%, J153=\"\",),\"\", \"Der Gesamtbeschäftigungsumfang liegt nicht bei 100%. Bitte überprüfen Sie Ihre Eingaben bei lfd. Nr.9.\")","v":""}]
[null,{"$f":"IF(OR(J154=100%, J154=\"\",),\"\", \"Der Gesamtbeschäftigungsumfang liegt nicht bei 100%. Bitte überprüfen Sie Ihre Eingaben bei lfd. Nr.10.\")","v":""}]
[]
[]
[null,"Übersicht über Personalausgaben für das Jahr",null,null,null,null,{"$f":"IF(G116=\"\",\"\",G116)","v":2021},"(2. Kalenderjahr)"]
["\n>","Hinweis: \nZuwendungsempfänger, deren Gesamtausgaben überwiegend aus Zuwendungen der öffentlichen Hand bestritten werden, unterliegen dem Besserstellungsverbot.\nDas Besserstellungsverbot ist eingehalten, wenn die Beschäftigten tatsächlich (in der Summe) nicht finanziell bessergestellt sind als vergleichbare Landesbedienstete."]
[">","In den geltend gemachten Personalausgaben dürfen nur enthalten sein: Bruttolohn, Sozialabgaben des Arbeitgebers, Sonderzahlungen wie Urlaubs- und Weihnachtsgeld - soweit tariflich oder arbeitsvertraglich geregelt."]
[]
[null,"A - internes Personal"]
[null,"lfd. Nr.","Funktion/Aufgaben ","Name der/des Beschäftigten ","Tarifvertrag (gängige Abkürzung) und tarifliche Eingruppierung","Personalausgaben insgesamt in und außerhalb des Projekts inkl. Sozialabgaben und sonstige Arbeitgeberanteile im 2. Kalenderjahr\n(in EURO)",null,"Beschäftigungsumfang insgesamt beim Träger \n(in Prozent)","Beschäftigungsumfang im ESF-Projekt (in Bezug auf die Gesamtbeschäftigung beim Träger) \n(in Prozent)","Personalausgaben inkl. Sozialabgaben und sonstige Arbeitgeber-anteile, die auf das ESF-Projekt entfallen\n(in EURO)"]
[null,"Beispiele: Im Beispiel 1 werden für das 2. Kalenderjahr von 12 Monaten 45.000,00 € förderfähige Personalausgaben laut Buchhaltungsdaten anfallen. Im Beispiel 2 werden für eine lediglich 6-monatige Beschäftigung während des 2. Kalenderjahrs 15.000,00 € förderfähige Personalausgaben laut Buchhaltungsdaten anfallen."]
[null,"B 1","Ausbilder/in","Name, Vorname","TVöD E 12",45000,null,0.75,0.5,{"$f":"IF(F175>0, I175*F175,\"\")","v":22500}]
[null,"B 2","Berufswerber/in","Name, Vorname","TVöD E 12",15000,null,0.5,1,{"$f":"IF(F176>0, I176*F176,\"\")","v":15000}]
[]
[null,"1.",null,{"$f":"IF(C125>0,C125,\" \")","v":" "},null,null,null,{"$f":"IF(E125>0,E125,\" \")","v":" "},{"$f":"IF(H125>0,H125,\" \")","v":" "},{"$f":"IF(F178>0, I178*F178,\"\")","v":""}]
[null,"2.",null," ",null,null,null," "," ",""]
[null,"3.",null," ",null,null,null," "," ",""]
[null,"4.",null," ",null,null,null," "," ",""]
[null,"5.",null," ",null,null,null," "," ",""]
[null,"6.",null," ",null,null,null," "," ",""]
[null,"7.",null," ",null,null,null," "," ",""]
[null,"8.",null," ",null,null,null," "," ",""]
[null,"9.",null," ",null,null,null," "," ",""]
[null,"10.",null," ",null,null,null," "," ",""]
[null,null,null,null,null,null,null,null,"Summe internes Personal:",{"$f":"SUM(J178:J187)","v":0}]
[null,"B - externes Personal"]
[null,"lfd. Nr.","Funktion/Aufgaben ","Name der/des Beschäftigten",null,"Honorar pro Stunde \n(in EURO)",null,null,"Beschäftigungsumfang im ESF-Projekt (Stunden insgesamt)","Honoraraufwendungen, die auf das ESF-Projekt entfallen \n(in EURO)"]
[null,"1.",null,null,null,null,null,null,null,{"$f":"IF(F191>0, I191*F191,\"\")","v":""}]
[null,"2.",null,null,null,null,null,null,null,""]
[null,"3.",null,null,null,null,null,null,null,""]
[null,"4.",null,null,null,null,null,null,null,""]
[null,"5.",null,null,null,null,null,null,null,""]
[null,"6.",null,null,null,null,null,null,null,""]
[null,"7.",null,null,null,null,null,null,null,""]
[null,"8.",null,null,null,null,null,null,null,""]
[null,"9.",null,null,null,null,null,null,null,""]
[null,"10.",null,null,null,null,null,null,null,""]
[null,"11.",null,null,null,null,null,null,null,""]
[null,"12.",null,null,null,null,null,null,null,""]
[null,"13.",null,null,null,null,null,null,null,""]
[null,"14.",null,null,null,null,null,null,null,""]
[null,"15.",null,null,null,null,null,null,null,""]
[null,null,null,null,null,null,null,null,"Summe externes Personal:",{"$f":"SUM(J191:J205)","v":0}]
[]
[null,null,null,null,"Gesamtpersonalausgaben (2. Kalenderjahr):",null,null,null,null,{"$f":"ROUND(J206+J188,2)","v":0}]

{"sheet":"Datenschutzerklärung","index":4,"n_rows":0,"n_cols":0,"rows_kept":0,"cut":false,"hidden":false,"merged":[]}